bitfinex/quotes_SOLUSD_20240727
["timestamp","ask_amount","ask_price","bid_price","bid_amount"]
[1722077224967,5.3798,185.88,185.84,45.0]
[1722077225172,17.8797,185.89,185.83,12.5]
[1722077225349,1.33720562,185.91,185.81,12.5]
[1722077225350,17.8798,185.88,185.81,12.5]
[1722077225670,12.5,185.86,185.82,45.0]
[1722077225865,17.8804,185.86,185.8,12.5]
[1722077226768,17.8804,185.86,185.79,22.1507]
[1722077226951,17.8804,185.86,185.8,57.5]
[1722077227153,12.5,185.86,185.8,45.0]
[1722077227865,12.5,185.86,185.8,57.5]
[1722077230671,17.8798,185.88,185.81,12.5]
[1722077232079,5.3801,185.87,185.81,12.5]
[1722077232279,17.8801,185.87,185.8,57.5]
[1722077232661,12.5,185.86,185.8,45.0]
[1722077233767,17.8801,185.87,185.8,57.5]
[1722077234470,12.5,185.86,185.8,45.0]
[1722077234783,12.5,185.84,185.78,12.5]
[1722077235083,12.5,185.84,185.77,12.5]
[1722077235290,12.5,185.84,185.78,45.0]
[1722077235584,12.5,185.85,185.78,57.5]
[1722077235771,17.8804,185.86,185.78,57.5]
[1722077235970,12.5,185.86,185.79,12.5]
[1722077236487,12.5,185.86,185.8,45.0]
[1722077236655,17.8801,185.87,185.8,58.57624257]
[1722077236855,20.0,185.86,185.8,45.0]
[1722077237061,33.5156,185.89,185.82,12.5]
[1722077237265,32.5,185.88,185.81,12.5]
[1722077237557,12.5,185.87,185.82,45.0]
[1722077237757,12.5,185.87,185.8,57.5]
[1722077238081,32.5,185.88,185.81,12.5]
[1722077238379,20.0,185.88,185.82,57.5]
[1722077239486,17.8796,185.89,185.82,57.5]
[1722077239785,5.3796,185.89,185.82,57.5]
[1722077239994,5.3792,185.9,185.83,12.5]
[1722077240282,5.3792,185.9,185.84,57.5]
[1722077241669,17.8789,185.91,185.84,57.5]
[1722077242381,17.8797,185.89,185.82,12.5]
[1722077242685,5.3797,185.89,185.83,45.0]
[1722077243768,5.3797,185.89,185.82,45.0]
[1722077245796,5.3792,185.9,185.82,57.5]
[1722077246176,7.83200562,185.92,185.7,395.48761938]
[1722077246177,12.5,185.87,185.77,16.33276646]
[1722077246381,12.5,185.87,185.8,12.5]
[1722077246596,12.5,185.87,185.81,12.5]
[1722077247176,12.5,185.91,185.84,12.5]
[1722077247379,20.0,185.9,185.84,12.5]
[1722077247695,20.0,185.9,185.85,45.0]
[1722077248577,32.5,185.9,185.85,45.0]
[1722077248796,37.8793,185.9,185.84,45.0]
[1722077248999,32.5,185.9,185.84,45.0]
[1722077249308,32.5,185.9,185.84,41.739]
[1722077249709,17.8795,185.89,185.84,41.739]
[1722077250085,25.3792,185.9,185.84,41.739]
[1722077250811,20.0,185.9,185.83,12.5]
[1722077250982,5.3793,185.9,185.84,12.5]
[1722077251178,37.879,185.91,185.84,12.5]
[1722077251903,5.3792,185.9,185.84,12.5]
[1722077252306,17.8792,185.9,185.83,12.5]
[1722077252497,5.3792,185.9,185.84,45.0]
[1722077252801,17.8792,185.9,185.84,45.0]
[1722077253197,17.8792,185.9,185.84,57.5]
[1722077253502,25.379,185.91,185.84,57.5]
[1722077253692,37.879,185.91,185.84,57.5]
[1722077254202,17.8793,185.9,185.84,57.5]
[1722077254407,17.8793,185.9,185.84,45.0]
[1722077254711,17.8795,185.89,185.84,45.0]
[1722077255006,17.8795,185.89,185.83,45.0]
[1722077255599,17.8798,185.88,185.83,45.0]
[1722077255785,17.8798,185.88,185.82,45.0]
[1722077257001,12.5,185.88,185.82,45.0]
[1722077258000,12.5,185.87,185.82,45.0]
[1722077258582,12.5,185.86,185.79,12.5]
[1722077258786,12.5,185.84,185.77,27.7567]
[1722077258991,12.5,185.83,185.76,12.5]
[1722077259283,12.5,185.83,185.73,15.2567]
[1722077259482,5.381,185.84,185.75,12.5]
[1722077259483,12.5,185.82,185.75,12.5]
[1722077261599,12.5,185.82,185.76,45.0]
[1722077261798,12.5,185.83,185.76,57.5]
[1722077262193,12.5,185.83,185.77,12.5]
[1722077262596,12.5,185.84,185.77,12.5]
[1722077263321,15.905,185.88,185.8,12.5]
[1722077263505,12.5,185.87,185.8,12.5]
[1722077263821,12.5,185.86,185.79,12.5]
[1722077264025,12.5,185.85,185.78,12.5]
[1722077264226,12.5,185.85,185.79,45.0]
[1722077264595,17.8807,185.85,185.79,45.0]
[1722077264923,17.8807,185.85,185.78,12.5]
[1722077265295,12.5,185.85,185.78,12.5]
[1722077269623,12.5,185.85,185.79,46.0762943]
[1722077269803,12.5,185.85,185.8,1.0762597]
[1722077272430,12.5,185.85,185.79,45.0]
[1722077273629,12.5,185.82,185.75,12.5]
[1722077274921,12.5,185.82,185.76,45.0]
[1722077275249,17.8825,185.79,185.72,12.5]
[1722077275599,12.5,185.79,185.72,12.5]
[1722077276423,17.8825,185.79,185.72,12.5]
[1722077276606,12.5,185.78,185.71,12.5]
[1722077277210,17.8827,185.78,185.72,45.0]
[1722077278237,5.383,185.77,185.69,16.5223]
[1722077278432,12.5,185.76,185.69,12.5]
[1722077278732,12.5,185.76,185.66,6.6459]
[1722077278733,12.5,185.76,185.68,12.5]
[1722077278907,17.8836,185.75,185.66,6.6459]
[1722077279118,17.8836,185.75,185.68,12.5]
[1722077279544,20.0,185.77,185.68,12.5]
[1722077279739,5.383,185.77,185.69,12.5]
[1722077280044,32.5,185.76,185.69,12.5]
[1722077280345,37.8833,185.76,185.69,12.5]
[1722077281650,37.8833,185.76,185.66,6.6459]
[1722077281835,37.8833,185.76,185.67,45.34]
[1722077282146,37.8833,185.76,185.69,12.5]
[1722077284555,5.3835,185.75,185.69,12.5]
[1722077284930,5.3839,185.74,185.69,12.5]
[1722077285127,5.3839,185.74,185.68,12.5]
[1722077285443,17.8836,185.75,185.68,12.5]
[1722077287441,5.3838,185.74,185.68,12.5]
[1722077289256,17.8836,185.75,185.68,12.5]
[1722077291251,12.5,185.75,185.67,45.0]
[1722077291555,36.3674,185.76,185.62,6.0093]
[1722077291556,12.5,185.72,185.62,6.0093]
[1722077291756,17.8847,185.71,185.64,12.5]
[1722077292938,12.5,185.71,185.65,45.0]
[1722077293664,17.8844,185.72,185.65,57.5]
[1722077294064,5.3848,185.71,185.66,1.07705206]
[1722077294238,5.3848,185.71,185.65,12.5]
[1722077294440,5.3848,185.71,185.66,1.07710596]
[1722077295740,5.3839,185.74,185.68,12.5]
[1722077295941,20.0,185.73,185.68,12.5]
[1722077296142,21.7509,185.76,185.68,12.5]
[1722077296355,16.3674,185.76,185.71,12.5]
[1722077296568,11.6694,185.77,185.71,12.5]
[1722077296944,5.383,185.77,185.71,12.5]
[1722077297260,5.383,185.77,185.72,1.07677095]
[1722077298162,16.3674,185.8,185.74,12.5]
[1722077298366,16.3674,185.8,185.75,1.07654506]
[1722077298571,11.6684,185.81,185.75,13.57654506]
[1722077298756,11.6684,185.81,185.76,1.07654414]
[1722077298945,5.3821,185.8,185.76,1.07654414]
[1722077299282,5.3825,185.79,185.73,12.5]
[1722077299441,5.3827,185.78,185.74,45.0]
[1722077299776,12.5,185.79,185.72,12.5]
[1722077299946,12.5,185.79,185.73,45.0]
[1722077300269,5.3827,185.78,185.73,45.0]
[1722077301679,5.3827,185.78,185.72,12.5]
[1722077301981,12.5,185.79,185.71,12.5]
[1722077301982,17.883,185.77,185.71,12.5]
[1722077302179,17.883,185.77,185.7,12.5]
[1722077302753,5.3835,185.75,185.7,12.5]
[1722077302964,5.3835,185.75,185.69,12.5]
[1722077303449,12.5,185.76,185.69,12.5]
[1722077303450,17.8833,185.76,185.69,12.5]
[1722077304159,12.5,185.75,185.68,12.5]
[1722077304361,17.8833,185.76,185.69,57.5]
[1722077306879,12.5,185.76,185.69,57.5]
[1722077307376,17.883,185.77,185.7,12.5]
[1722077307581,20.0,185.76,185.7,12.5]
[1722077308952,20.0,185.76,185.69,45.0]
[1722077309152,25.3833,185.76,185.7,12.5]
[1722077309777,5.3836,185.75,185.7,12.5]
[1722077310678,5.3836,185.75,185.69,57.5]
[1722077310861,37.8833,185.76,185.69,57.5]
[1722077311785,37.8833,185.76,185.69,45.0]
[1722077312169,37.8833,185.76,185.69,57.5]
[1722077312678,25.3833,185.76,185.69,57.5]
[1722077313285,20.0,185.76,185.7,12.5]
[1722077313492,12.5,185.77,185.7,12.5]
[1722077314377,17.8832,185.77,185.7,12.5]
[1722077314888,5.3833,185.76,185.7,12.5]
[1722077316089,5.3829,185.78,185.7,12.5]
[1722077316254,11.92056304,185.81,185.69,46.07679645]
[1722077316255,20.0,185.77,185.72,12.5]
[1722077316459,11.92056304,185.81,185.73,57.5]
[1722077316460,17.8821,185.8,185.73,57.5]
[1722077316691,17.8821,185.8,185.73,12.5]
[1722077317186,17.8824,185.79,185.73,12.5]
[1722077317884,17.8824,185.79,185.72,12.5]
[1722077318092,17.8824,185.79,185.73,45.0]
[1722077319584,12.5,185.76,185.68,1.07663918]
[1722077319785,5.3845,185.72,185.6,8.09222508]
[1722077319979,5.384,185.74,185.64,1.07689185]
[1722077320176,5.384,185.74,185.67,12.5]
[1722077320376,17.8836,185.75,185.67,12.5]
[1722077320889,5.3839,185.74,185.67,12.5]
[1722077321078,5.3842,185.73,185.67,12.5]
[1722077321278,5.3839,185.74,185.67,12.5]
[1722077321669,17.8839,185.74,185.67,12.5]
[1722077321983,15.0042,185.78,185.68,12.5]
[1722077322163,20.0,185.77,185.7,12.5]
[1722077322362,32.5,185.77,185.7,12.5]
[1722077322565,20.0,185.77,185.7,12.5]
[1722077322781,32.5,185.77,185.7,12.5]
[1722077323186,37.883,185.77,185.71,45.0]
[1722077323778,37.883,185.77,185.71,57.5]
[1722077327287,12.5,185.75,185.66,16.4687]
[1722077327475,25.3841,185.74,185.68,12.5]
[1722077327990,20.0,185.74,185.68,12.5]
[1722077328363,25.3841,185.74,185.68,12.5]
[1722077331568,11.01813919,185.77,185.71,12.5]
[1722077331777,20.0,185.76,185.71,12.5]
[1722077332286,5.3833,185.76,185.71,12.5]
[1722077332483,25.3836,185.75,185.71,12.5]
[1722077332791,25.3836,185.75,185.69,45.34]
[1722077332792,12.5,185.76,185.69,57.5]
[1722077332999,5.3839,185.74,185.69,45.0]
[1722077333870,5.3839,185.74,185.68,12.5]
[1722077336490,5.3845,185.72,185.63,6.0093]
[1722077336696,5.3849,185.71,185.65,12.5]
[1722077337277,17.8845,185.72,185.65,12.5]
[1722077338098,5.3848,185.71,185.65,12.5]
[1722077338301,20.0,185.7,185.65,12.5]
[1722077340876,20.0,185.7,185.66,57.5]
[1722077341079,20.0,185.72,185.64,0.17]
[1722077341278,5.3838,185.75,185.69,12.5]
[1722077342819,20.0,185.74,185.69,12.5]
[1722077343377,25.3839,185.74,185.69,12.5]
[1722077343802,20.0,185.74,185.69,12.5]
[1722077344009,25.3839,185.74,185.69,12.5]
[1722077344595,25.3839,185.74,185.63,46.4168485]
[1722077344596,5.3845,185.72,185.63,46.4168485]
[1722077344905,5.3845,185.72,185.68,12.5]
[1722077345202,5.3847,185.71,185.68,12.5]
[1722077345703,5.3844,185.72,185.68,12.5]
[1722077346211,25.3839,185.74,185.69,57.5]
[1722077346381,25.3839,185.74,185.69,12.5]
[1722077346703,5.3841,185.73,185.63,62.6068485]
[1722077347097,5.3841,185.73,185.69,12.5]
[1722077347507,5.3839,185.74,185.7,12.5]
[1722077347814,5.3839,185.74,185.63,62.6068485]
[1722077347815,5.3834,185.76,185.71,58.57679981]
[1722077347988,5.3834,185.76,185.71,57.5]
[1722077348192,5.3834,185.76,185.67,13.57675706]
[1722077348193,5.3836,185.75,185.7,12.5]
[1722077348407,5.3836,185.75,185.71,45.0]
[1722077348613,5.3833,185.76,185.71,57.5]
[1722077349417,5.3833,185.76,185.71,45.0]
[1722077351025,5.3836,185.75,185.71,45.0]
[1722077351209,12.5,185.76,185.64,22.3329]
[1722077351408,12.5,185.76,185.69,12.5]
[1722077351588,5.3839,185.74,185.69,12.5]
[1722077354920,5.3836,185.75,185.69,12.5]
[1722077355203,17.8839,185.74,185.67,12.5]
[1722077355926,17.8839,185.74,185.68,12.5]
[1722077356525,5.3839,185.74,185.68,12.5]
[1722077357098,12.5,185.75,185.68,12.5]
[1722077357709,17.8835,185.76,185.69,12.5]
[1722077358106,5.3836,185.75,185.69,12.5]
[1722077358644,5.3842,185.73,185.63,1.07690921]
[1722077358815,12.5,185.72,185.62,15.6209]
[1722077359001,12.5,185.72,185.65,12.5]
[1722077359505,13.4581,185.77,185.64,12.5]
[1722077359506,17.8848,185.71,185.64,12.5]
[1722077360827,17.8848,185.71,185.65,45.0]
[1722077361026,12.5,185.71,185.65,45.0]
[1722077362928,12.5,185.71,185.64,12.5]
[1722077364411,12.5,185.7,185.63,12.5]
[1722077367034,5.3848,185.71,185.63,12.5]
[1722077367222,20.9592,185.72,185.64,13.57718893]
[1722077367434,20.0,185.71,185.65,12.5]
[1722077367727,20.0,185.71,185.66,13.57712485]
[1722077367930,20.0,185.71,185.66,12.5]
[1722077369407,25.3847,185.71,185.66,12.5]
[1722077372311,25.3847,185.71,185.65,12.5]
[1722077372515,37.8847,185.71,185.65,12.5]
[1722077372714,5.3851,185.7,185.64,12.5]
[1722077372911,20.0,185.71,185.65,12.5]
[1722077373136,20.0,185.72,185.68,12.5]
[1722077373817,17.8835,185.76,185.69,57.5]
[1722077374132,5.3836,185.75,185.69,57.5]
[1722077375234,12.5,185.76,185.69,57.5]
[1722077375422,17.8833,185.76,185.69,57.5]
[1722077375745,5.3833,185.76,185.7,12.5]
[1722077375914,5.3833,185.76,185.71,45.0]
[1722077376733,20.0,185.75,185.71,45.0]
[1722077380525,20.0,185.75,185.71,57.5]
[1722077381028,20.0,185.75,185.71,45.0]
[1722077381231,20.0,185.75,185.71,57.5]
[1722077381436,25.3836,185.75,185.71,57.5]
[1722077382549,28.9768,185.81,185.71,57.5]
[1722077382725,5.3825,185.79,185.73,12.5]
[1722077382924,5.3825,185.79,185.74,1.07659269]
[1722077383542,5.3827,185.78,185.74,1.07659269]
[1722077383937,5.383,185.77,185.73,12.5]
[1722077384331,5.383,185.77,185.72,12.5]
[1722077384531,5.383,185.77,185.71,57.5]
[1722077385438,5.383,185.77,185.72,12.5]
[1722077385639,5.383,185.77,185.71,57.5]
[1722077386648,5.3823,185.8,185.73,12.5]
[1722077386947,37.8826,185.79,185.73,12.5]
[1722077387248,5.383,185.77,185.73,12.5]
[1722077387428,5.383,185.77,185.72,12.5]
[1722077387629,12.5,185.78,185.72,12.5]
[1722077388448,12.5,185.78,185.73,45.0]
[1722077388668,25.3827,185.79,185.73,57.5]
[1722077390238,5.3828,185.78,185.73,45.0]
[1722077390541,12.5,185.76,185.69,12.5]
[1722077391324,12.5,185.77,185.7,12.5]
[1722077391947,12.5,185.77,185.71,45.0]
[1722077392536,17.883,185.77,185.71,45.0]
[1722077393546,17.8827,185.78,185.71,57.5]
[1722077394348,12.5,185.76,185.71,45.0]
[1722077394525,13.83720562,185.76,185.7,45.0]
[1722077394725,12.5,185.76,185.7,45.0]
[1722077395628,17.8833,185.76,185.7,45.0]
[1722077397239,17.8833,185.76,185.69,12.5]
[1722077398348,17.8833,185.76,185.69,12.0]
[1722077399251,12.5,185.76,185.69,12.0]
[1722077399952,20.0,185.77,185.69,12.0]
[1722077400159,32.5,185.77,185.71,12.5]
[1722077400335,20.0,185.77,185.72,45.0]
[1722077400534,12.5,185.78,185.72,45.0]
[1722077400747,20.0,185.77,185.72,45.0]
[1722077401550,5.3824,185.79,185.72,45.0]
[1722077401551,21.15680063,185.81,185.73,12.5]
[1722077401756,12.0281,185.82,185.74,57.67]
[1722077401935,12.5,185.83,185.76,12.5]
[1722077402134,12.5,185.83,185.77,1.07642107]
[1722077402340,17.8812,185.83,185.77,1.07642107]
[1722077402546,12.5,185.83,185.77,1.07642107]
[1722077402751,17.8812,185.83,185.77,45.0]
[1722077403344,20.0,185.82,185.77,45.0]
[1722077403542,25.3815,185.82,185.77,45.0]
[1722077403752,12.5,185.81,185.74,12.5]
[1722077404058,12.5,185.78,185.7,16.4726]
[1722077404241,12.5,185.78,185.71,12.5]
[1722077406065,12.5,185.78,185.72,45.34]
[1722077406238,5.3818,185.81,185.72,57.84]
[1722077406444,12.5,185.79,185.72,57.84]
[1722077406646,12.5,185.8,185.73,12.5]
[1722077406855,5.3818,185.81,185.74,57.5]
[1722077406856,12.5,185.81,185.74,57.5]
[1722077407256,12.5,185.81,185.75,12.5]
[1722077408641,17.8819,185.81,185.74,57.5]
[1722077409055,5.3822,185.8,185.74,57.5]
[1722077409247,17.8822,185.8,185.74,45.0]
[1722077413341,5.3822,185.8,185.74,45.0]
[1722077413557,11.01488783,185.84,185.77,12.5]
[1722077413761,5.3813,185.83,185.77,12.5]
[1722077414952,12.12699709,185.87,185.79,12.5]
[1722077415154,12.5,185.86,185.79,12.5]
[1722077415359,5.63299709,185.87,185.81,12.5]
[1722077415559,12.5,185.89,185.82,12.5]
[1722077416160,5.3795,185.89,185.83,12.5]
[1722077416360,5.3775,185.96,185.85,12.5]
[1722077416560,5.3779,185.95,185.86,1.41573784]
[1722077416861,5.3781,185.94,185.88,12.5]
[1722077417066,12.5,185.9,185.86,45.0]
[1722077417269,5.3798,185.88,185.82,28.61]
[1722077417473,5.3798,185.88,185.82,16.11]
[1722077417474,12.5,185.88,185.82,16.11]
[1722077417774,17.8801,185.87,185.8,12.5]
[1722077418067,1.33720562,185.92,185.78,28.61]
[1722077418068,17.8809,185.85,185.78,28.61]
[1722077419071,12.5,185.87,185.8,12.5]
[1722077419257,20.0,185.86,185.81,12.5]
[1722077419460,20.0,185.86,185.81,57.5]
[1722077419654,20.0,185.86,185.81,45.0]
[1722077419859,20.0,185.86,185.78,28.61]
[1722077419860,32.5,185.86,185.78,28.61]
[1722077420075,32.5,185.86,185.79,45.0]
[1722077420277,32.5,185.86,185.78,28.61]
[1722077420774,32.5,185.86,185.78,12.5]
[1722077421070,12.5,185.85,185.78,12.5]
[1722077421279,17.8809,185.85,185.78,12.5]
[1722077421766,17.8809,185.85,185.79,45.0]
[1722077422348,1.33720562,185.85,185.74,22.364]
[1722077422548,17.8816,185.82,185.75,12.5]
[1722077422748,17.8816,185.82,185.74,34.864]
[1722077422749,12.5,185.81,185.74,34.864]
[1722077422968,17.8816,185.82,185.75,12.5]
[1722077423144,5.3819,185.81,185.75,12.5]
[1722077423349,12.5,185.81,185.74,34.864]
[1722077423774,17.8816,185.82,185.75,12.5]
[1722077425464,17.8816,185.82,185.76,12.5]
[1722077425665,5.3816,185.82,185.76,12.5]
[1722077426377,6.71880562,185.82,185.75,12.5]
[1722077426566,12.5,185.81,185.74,12.5]
[1722077426769,12.5,185.81,185.75,45.0]
[1722077427383,12.5,185.81,185.75,57.5]
[1722077430873,6.586,185.84,185.77,12.5]
[1722077431059,32.5,185.83,185.77,12.5]
[1722077431260,32.5,185.83,185.76,12.67]
[1722077431455,32.5,185.83,185.77,45.0]
[1722077431660,20.0,185.83,185.77,57.5]
[1722077434174,20.0,185.83,185.78,12.5]
[1722077434379,33.3182,185.85,185.78,12.5]
[1722077434573,20.0,185.84,185.78,12.5]
[1722077435864,25.381,185.84,185.78,12.5]
[1722077437773,5.3812,185.83,185.77,57.5]
[1722077438078,5.3815,185.82,185.77,45.0]
[1722077439294,12.5,185.83,185.77,45.0]
[1722077439583,37.8812,185.84,185.77,57.5]
[1722077439959,5.3814,185.83,185.77,57.5]
[1722077440390,17.8814,185.83,185.77,45.0]
[1722077441567,17.8814,185.83,185.76,12.5]
[1722077442699,13.83720562,185.82,185.74,12.5]
[1722077442900,13.83720562,185.82,185.75,45.0]
[1722077443488,19.21880562,185.82,185.75,45.0]
[1722077443688,12.5,185.81,185.75,45.0]
[1722077444289,12.5,185.82,185.75,45.0]
[1722077444485,32.5,185.84,185.77,12.5]
[1722077444792,12.5,185.83,185.76,12.5]
[1722077446305,20.0,185.84,185.76,12.5]
[1722077446476,32.5,185.84,185.77,12.5]
[1722077446796,20.0,185.84,185.77,12.5]
[1722077447006,25.381,185.84,185.77,12.5]
[1722077447306,37.881,185.84,185.77,12.5]
[1722077447479,39.21820562,185.84,185.77,12.5]
[1722077447677,12.5,185.83,185.76,12.5]
[1722077447912,12.5,185.83,185.77,45.0]
[1722077449098,25.381,185.84,185.77,57.5]
[1722077449099,37.881,185.84,185.77,57.5]
[1722077449677,25.381,185.84,185.78,12.5]
[1722077450091,27.9375,185.85,185.78,12.5]
[1722077450294,20.8182,185.85,185.79,12.5]
[1722077453407,5.381,185.84,185.79,12.5]
[1722077457105,5.3812,185.83,185.79,12.5]
[1722077457407,5.3815,185.82,185.77,57.5]
[1722077458901,5.3813,185.83,185.77,57.5]
[1722077460713,17.8813,185.83,185.77,45.0]
[1722077461090,5.3816,185.82,185.76,12.5]
[1722077461292,17.8813,185.83,185.76,12.5]
[1722077464412,12.5,185.83,185.76,12.5]
[1722077465208,12.5,185.83,185.7,1.07634461]
[1722077465209,5.3821,185.8,185.71,15.5124]
[1722077465400,12.5,185.8,185.73,12.5]
[1722077465598,17.8819,185.81,185.74,12.5]
[1722077465794,12.5,185.81,185.74,12.5]
[1722077466102,17.8819,185.81,185.74,12.5]
[1722077466499,12.5,185.8,185.73,12.5]
[1722077466695,17.8819,185.81,185.74,57.5]
[1722077467322,5.3819,185.81,185.75,13.57660114]
[1722077468599,17.8819,185.81,185.75,1.07660114]
[1722077470317,5.3819,185.81,185.75,13.57660114]
[1722077471323,21.07106413,185.85,185.76,57.5]
[1722077471504,21.07106413,185.85,185.74,45.0]
[1722077471505,12.5,185.84,185.77,13.57641496]
[1722077472006,5.3813,185.83,185.77,13.57641496]
[1722077472406,5.3813,185.83,185.78,1.07641921]
[1722077472715,5.3813,185.83,185.78,13.57641946]
[1722077472922,5.381,185.84,185.79,12.5]
[1722077473217,12.5,185.86,185.79,12.5]
[1722077474315,5.381,185.84,185.79,12.5]
[1722077475007,5.3809,185.85,185.79,12.5]
[1722077475914,5.3804,185.86,185.8,13.57634466]
[1722077476123,17.8804,185.86,185.81,1.07624595]
[1722077477429,17.8804,185.86,185.8,12.5]
[1722077477808,5.3804,185.86,185.8,12.5]
[1722077478136,5.3807,185.85,185.8,12.5]
[1722077478434,5.3807,185.85,185.79,12.5]
[1722077478745,5.3807,185.85,185.8,45.0]
[1722077479718,17.8812,185.84,185.77,28.0124]
[1722077479920,17.8812,185.84,185.78,45.0]
[1722077480421,17.8812,185.84,185.76,0.17]
[1722077480422,12.5,185.83,185.76,12.5]
[1722077480626,13.4507,185.87,185.75,12.5]
[1722077480627,17.8816,185.82,185.75,12.5]
[1722077481323,12.5,185.82,185.76,13.57650154]
[1722077481524,12.5,185.82,185.77,1.07648942]
[1722077481729,17.8813,185.83,185.76,12.5]
[1722077482727,17.8816,185.82,185.76,12.5]
[1722077483524,12.5,185.8,185.73,1.07653235]
[1722077483731,17.8823,185.8,185.73,12.5]
[1722077483946,12.5,185.79,185.72,15.5124]
[1722077484116,12.5,185.79,185.57,20.0]
[1722077484117,12.5,185.74,185.64,8.09058192]
[1722077484318,12.5,185.74,185.67,12.5]
[1722077485347,12.5,185.75,185.68,12.5]
[1722077486142,13.4552,185.81,185.59,8.09058192]
[1722077486143,3.56426425,185.85,185.74,12.5]
[1722077486321,12.5,185.82,185.75,57.5]
[1722077486519,5.381,185.84,185.76,13.57649652]
[1722077486749,12.5,185.83,185.76,13.57649652]
[1722077487452,12.5,185.84,185.77,58.57644843]
[1722077487632,12.5,185.84,185.77,57.5]
[1722077487837,20.0,185.83,185.77,57.5]
[1722077488027,12.5,185.81,185.75,0.17]
[1722077488229,12.5,185.8,185.74,12.5]
[1722077488426,12.5,185.8,185.75,45.0]
[1722077488622,12.5,185.8,185.74,12.5]
[1722077488836,12.5,185.8,185.73,12.5]
[1722077489026,12.5,185.79,185.72,12.5]
[1722077489225,17.8824,185.79,185.72,12.5]
[1722077489444,12.5,185.78,185.71,12.5]
[1722077490627,17.8827,185.78,185.72,45.0]
[1722077490841,17.8827,185.78,185.71,12.5]
[1722077491044,12.5,185.78,185.71,12.5]
[1722077497354,12.5,185.78,185.72,12.5]
[1722077499949,5.3839,185.74,185.65,6.0169]
[1722077500153,5.3839,185.74,185.67,12.5]
[1722077500154,17.8839,185.74,185.67,12.5]
[1722077500656,12.5,185.74,185.67,12.5]
[1722077501236,12.5,185.74,185.68,45.0]
[1722077501843,12.5,185.75,185.64,15.5719]
[1722077502165,12.5,185.73,185.64,15.5719]
[1722077502467,12.5,185.74,185.67,12.5]
[1722077503457,12.5,185.75,185.68,12.5]
[1722077503754,12.5,185.76,185.68,12.5]
[1722077503952,20.0,185.75,185.69,12.5]
[1722077505033,6.5502,185.79,185.7,12.5]